Workbook

Sheet WT Calc ASME B31.8
A1: ATTACHMENT - X
A2: Document No. X
A3: =CONCATENATE("Wall Thickness Calculation of ",E7,"in Gas Pipeline (Location Class-",E9,", D.F.=",E10,", Corr. Allow.=",E8,"mm)") -> Wall Thickness Calculation of 36in Gas Pipeline (Location Class-3, D.F.=0.5, Corr. Allow.=1.5mm)
A4: 1
A5: 2 | C5: DESIGN INPUT
A6: 3 | C6: Design Code | E6: ASME B31.8
A7: 4 | C7: Pipeline Size / Nominal O.D | D7: D | E7: 36 | F7: in | G7: =E7*25.4 -> 914.4 | H7: mm
A8: 5 | C8: Corrosion Allowance | D8: A | E8: 1.5 | F8: mm
A9: 6 | C9: Location Class | E9: 3
A10: 7 | C10: Design Factor | D10: F | E10: 0.5
A11: 8
A12: 9 | C12: Steel Coefficient of Expansion, | D12: α | E12: 1.17e-05 | F12: per deg C | G12: 6.5e-06 | H12: in/in/ oC
A13: 10 | C13: Modulus of Elasticity | D13: E | E13: 207000 | F13: Mpa | G13: 30500000 | H13: Psi
A14: 11
A15: 12 | C15: Pressure and Temperature Data
A16: 13 | C16: Design Pressure | D16: P | E16: 63.5 | F16: bar g | G16: =E16*14.50377 -> 920.989395 | H16: psi g
A17: 14 | C17: Design Temperature (Underground) | D17: Td | E17: 65 | F17: oC | G17: =E17*9/5+32 -> 149 | H17: oF
A18: 15 | C18: Installation (backfill) Temp | D18: Ti | E18: 13 | F18: oC | G18: 55.4 | H18: oF
A19: 16 | C19: Weld joint factor | D19: E | E19: 1
A20: 17 | C20: Temperature Derating Factor | D20: T | E20: 1
A21: 18
A22: 19 | C22: A. WALL THICKNESS
A23: 20 | C23: Grade | H23: X60
A24: 21 | C24: SMYS of Line Pipe | F24: S | H24: 60200 | I24: psi | J24: =H24*0.006894757 -> 415.0643714 | K24: MPa
A25: 22 | C25: Wall Thickness Calculated | F25: tmin | H25: =(($G$16*$G7)/(2*H24*($E$10)*($E$19)))+$E$8 -> 15.48924755 | I25: mm | J25: =H25/25.4 -> 0.6098128959 | K25: inch
A26: 23 | C26: tmin = P x D / (2x Sx Fx E x T) + A
A27: 24 | C27: Next higher API wall thickness | F27: t | H27: 15.9 | I27: mm | J27: =H27/25.4 -> 0.625984252 | K27: inch
A28: 25 | C28: D/t Check ( Should be < 96) | H28: =$G7/H27 -> 57.50943396
A29: 26
A30: 27 | C30: B. EQUIVALENT STRESS CHECK FOR CORRODED PIPE CONDITION
A31: 28 | C31: Wall thickness (t) | H31: =H27-E8 -> 14.4 | I31: mm
A32: 29 | C32: Hoop Stress = Sh = PD/2t | H32: =E16*G7/(20*(H31)) -> 201.6125 | I32: MPa
A33: 30
A34: 31 | C34: B.1 Restrained Pipe (Underground)
A35: 32 | C35: Thermal Stress = ST = a (Ti - Td) E | H35: =$E$13*$E$12*($E18-E17) -> -125.9388 | I35: MPa
A36: 33 | C36: Longitudinal Stress due to pressure = SP = 0.3 Sh | H36: =0.3*H32 -> 60.48375 | I36: MPa
A37: 34
A38: 35 | C38: Longitudinal Stress, SL
A39: 36 | C39: SL = SP + ST + SB + SX | D39: =CONCATENATE(" ≤ 0.9 x SMYS = ",ROUNDUP(0.9*J24,0)," MPa") -> ≤ 0.9 x SMYS = 374 MPa
A40: 37
A41: 38 | C41: Without considering SB (Bending stress) and SX (Axial stress due to external loading):
A42: 39 | C42: SL = SP + ST | H42: =H36+H35 -> -65.45505 | I42: MPa
A43: 40 | C43: Longitudinal Stress check : | D43: SL | E43: =IF(ABS(H42)<=0.9*J24,"≤ 0.9 x SMYS","> 0.9 x SMYS") -> ≤ 0.9 x SMYS | G43: hence | H43: =IF(E43="≤ 0.9 x SMYS","OK","NOT OK") -> OK
A44: 41
A45: 42 | C45: Equivalent Stress, SE
A46: 43 | C46: SE1 = | Sh - SL | | G46: SE1 | H46: =ABS(H32-H42) -> 267.06755 | I46: MPa
A47: 44 | C47: SE2 = [ Sh2 + SL2 - Sh SL ]1/2 | G47: SE2 | H47: =(H32^2+H42^2-H32*H42)^0.5 -> 241.098569 | I47: MPa
A48: 45 | C48: SE = Max (SE1, SE2) | D48: =CONCATENATE(" ≤ 0.9 x SMYS = ",ROUNDUP(0.9*J24,0)," MPa") -> ≤ 0.9 x SMYS = 374 MPa | G48: SE | H48: =MAX(H46,H47) -> 267.06755 | I48: MPa
A49: 46 | C49: Equivalent Stress check : | D49: SE | E49: =IF(H48<=0.9*J24,"≤ 0.9 x SMYS","> 0.9 x SMYS") -> ≤ 0.9 x SMYS | G49: hence | H49: =IF(E49="≤ 0.9 x SMYS","OK","NOT OK") -> OK
A50: 47
A51: 48 | C51: B.2 Unrestrained Pipe (Aboveground)
A52: 49 | C52: Longitudinal Stress due to pressure = SP = 0.5 Sh | H52: =0.5*H32 -> 100.80625 | I52: MPa
A53: 50
A54: 51 | C54: Longitudinal Stress, SL | O54: Iteration Control | Q54: =P56-P59 -> -3.372097927e-05
A55: 52 | C55: SL = SP +SB + SX | D55: =CONCATENATE(" ≤ 0.75 x SMYS = ",ROUNDUP(0.75*J24,0)," MPa") -> ≤ 0.75 x SMYS = 312 MPa
A56: 53 | C56: Without considering SB (Bending stress) and SX (Axial stress due to external loading): | O56: 0.9SMYS | P56: =0.9*J24 -> 373.5579343
A57: 54 | C57: SL = SP | H57: =H52 -> 100.80625 | I57: MPa | O57: SB | P57: -163.9808162
A58: 55 | C58: Longitudinal Stress check : | D58: SL | E58: =IF(H57<=0.75*J24,"≤ 0.75 x SMYS","> 0.75 x SMYS") -> ≤ 0.75 x SMYS | G58: hence | H58: =IF(E58="≤ 0.75 x SMYS","OK","NOT OK") -> OK | O58: SL | P58: =H36+H35+P57 -> -229.4358662
A59: 56 | O59: SE2 | P59: =(H32^2+P58^2-H32*P58)^0.5 -> 373.557968
A60: 57 | C60: C. MINIMUM BENDING RADIUS
A61: 58 | C61: Minimum bending radius for underground section is calculated from maximum margin of bending stress,
A62: 59 | C62: based on Max (SE1, SE2) = 0.9 x SMYS. Hence, bending stress SB = | H62: =IF(H46>=H47,0.7*H32-0.9*J24-H35,P57) -> -106.4903843 | I62: MPa
A63: 60 | C63: R (Minimum Bend Radius) = E D / (2 |Sb|) | H63: =E13*G7/(2*ABS(H62))/1000 -> 888.7224951 | I63: m
A64: 61
A65: 62 | C65: D. CHECK ON THINNING DUE TO COLD BENDS: BEND RADIUS = 40 D
A66: 63 | C66: Inner bend radius divided by diameter, (n) | H66: 39.5
A67: 64 | C67: As per PD 8010-1:2004, % of Wall thinning = 50 / (n+1) | H67: =50/(H66+1) -> 1.234567901 | I67: %
A68: 65 | C68: Pipe thk. before bending = cal thk/(1-thinning %) | H68: =H25/(1-$H$67/100) -> 15.68286315 | I68: mm
A69: 66 | C69: Available thickness for bending (= Selected thk) | H69: =H27 -> 15.9 | I69: mm
A70: 67 | C70: Adequacy Check (Pipe thk before bending < Available thk) | H70: =IF(H68<H69,"OK","Fail") -> OK
A71: 68
